bitfinex/quotes_ETHUSD_20240711
["timestamp","ask_amount","ask_price","bid_price","bid_amount"]
[1720733362122,4.1126259,3113.2,3112.7,0.953]
[1720733362475,1.1126259,3113.1,3112.7,0.953]
[1720733362648,3.0,3113.3,3112.7,0.953]
[1720733362969,1.11261031,3113.2,3112.7,0.953]
[1720733363133,1.11261031,3113.1,3112.7,0.953]
[1720733363351,3.85600335,3113.3,3112.7,0.953]
[1720733363543,1.1125937,3113.2,3112.7,0.953]
[1720733363850,1.1125937,3113.1,3112.7,0.953]
[1720733364162,7.06802335,3113.3,3112.6,0.953]
[1720733364362,2.37535243,3113.2,3112.6,0.953]
[1720733364569,1.11262785,3113.1,3112.6,0.953]
[1720733364724,1.26272434,3113.2,3112.6,0.953]
[1720733365020,1.11262796,3113.1,3112.6,0.953]
[1720733365221,3.2126935,3113.5,3112.8,0.953]
[1720733365453,4.44971609,3113.4,3112.8,0.953]
[1720733365653,1.11257868,3113.3,3112.8,0.953]
[1720733365851,3.0008135,3113.5,3113.0,0.953]
[1720733366056,4.11253995,3113.4,3112.7,5.57947]
[1720733366304,0.0008135,3113.5,3113.0,0.953]
[1720733366575,1.1125049,3113.4,3113.0,0.953]
[1720733366781,0.0008135,3113.5,3113.0,0.953]
[1720733366930,1.11251212,3113.4,3113.0,0.953]
[1720733367158,3.0008135,3113.5,3113.1,2.4172]
[1720733367335,1.11249929,3113.4,3113.1,2.4172]
[1720733367645,0.92205685,3113.5,3113.1,2.4172]
[1720733368035,1.11249389,3113.4,3113.2,0.953]
[1720733368362,0.0008135,3113.5,3113.2,0.953]
[1720733368867,0.0008135,3113.5,3113.1,5.62942]
[1720733368868,0.0008135,3113.5,3113.4,0.953]
[1720733369837,0.0008135,3113.5,3113.4,3.3248]
[1720733371335,0.0008135,3113.5,3113.4,3.978492]
[1720733375081,3.0,3114.4,3113.7,3.21159]
[1720733375379,3.0,3114.4,3113.9,3.3052]
[1720733375551,3.0,3114.5,3113.9,3.3052]
[1720733378482,6.21079,3114.5,3113.9,3.3052]
[1720733379078,6.21079,3114.5,3113.9,3.956879]
[1720733379653,3.0,3114.5,3113.9,3.956879]
[1720733379889,3.2107,3114.6,3113.9,3.956879]
[1720733380071,3.0,3114.5,3114.0,0.55]
[1720733380673,3.0,3114.6,3114.0,0.55]
[1720733381453,3.0,3114.6,3114.0,1.3218379]
[1720733384798,6.21071,3114.6,3114.0,1.3218379]
[1720733386427,1.11215766,3114.5,3114.0,1.3218379]
[1720733386607,6.21071,3114.6,3114.0,1.3218379]
[1720733386756,1.11216208,3114.5,3114.0,1.3218379]
[1720733386958,6.21071,3114.6,3114.0,1.3218379]
[1720733387182,1.11216213,3114.5,3114.0,1.3218379]
[1720733387391,6.21071,3114.6,3114.1,0.953]
[1720733387566,1.11215917,3114.5,3114.1,0.953]
[1720733387771,6.21071,3114.6,3114.1,0.953]
[1720733387996,1.11215877,3114.5,3114.2,2.53658379]
[1720733388210,3.2111554,3115.0,3114.3,1.503]
[1720733388359,3.21042,3114.9,3114.3,1.503]
[1720733388554,1.11205306,3114.8,3114.3,1.503]
[1720733388829,3.21042,3114.9,3114.3,1.90695838]
[1720733389012,1.11206153,3114.8,3114.3,1.90695838]
[1720733389158,0.0008254,3115.0,3114.3,1.90695838]
[1720733389362,1.11204015,3114.9,3114.3,1.90695838]
[1720733389562,3.2111054,3115.0,3114.3,1.90695838]
[1720733389563,1.11204015,3114.8,3114.3,1.90695838]
[1720733389763,3.2111054,3115.0,3114.4,0.44435422]
[1720733389983,1.11203557,3114.9,3114.4,0.44435422]
[1720733390261,1.11203557,3114.8,3114.4,0.44435422]
[1720733390587,3.2111054,3115.0,3114.4,0.44435422]
[1720733390793,1.1120114,3114.9,3114.4,0.44435422]
[1720733390982,1.1120114,3114.8,3114.5,0.23513126]
[1720733391178,3.2111054,3115.0,3114.5,0.23513126]
[1720733391179,1.1120114,3114.9,3114.5,0.23513126]
[1720733392004,1.11200986,3114.8,3114.5,0.23513126]
[1720733392165,3.2111054,3115.0,3114.5,0.23513126]
[1720733392366,1.11201813,3114.9,3114.5,0.23513126]
[1720733392685,1.11201813,3114.8,3114.5,0.23513126]
[1720733392889,3.2111054,3115.0,3114.5,0.23513126]
[1720733393085,1.11201689,3114.9,3114.5,0.23513126]
[1720733393296,1.11201689,3114.8,3114.5,0.23513126]
[1720733393495,3.2111054,3115.0,3114.5,0.23513126]
[1720733393697,1.11200957,3114.9,3114.5,0.23513126]
[1720733393901,3.2111054,3115.0,3114.5,0.23513126]
[1720733393902,1.11200957,3114.8,3114.5,0.23513126]
[1720733394191,1.11200957,3114.9,3114.6,2.4234]
[1720733394396,1.11200962,3114.8,3114.6,2.4234]
[1720733394614,3.2111054,3115.0,3114.6,2.4234]
[1720733394895,1.11200976,3114.9,3114.6,2.4234]
[1720733395196,3.2111054,3115.0,3114.6,2.4234]
[1720733395392,1.11200967,3114.8,3114.7,1.76885313]
[1720733395603,0.0008254,3115.0,3114.7,1.76885313]
[1720733396277,1.11189883,3114.9,3114.7,1.76885313]
[1720733396473,0.0008254,3115.0,3114.7,1.76885313]
[1720733396671,1.11189881,3114.9,3114.8,0.41922531]
[1720733396886,0.0008254,3115.0,3114.8,0.96922531]
[1720733397210,0.0008254,3115.0,3114.8,0.41922531]
[1720733397416,1.11189283,3114.9,3114.8,0.41922531]
[1720733397667,1.11189283,3114.9,3114.8,3.0171]
[1720733398149,1.11189046,3114.9,3114.8,3.0171]
[1720733398309,0.0008254,3115.0,3114.8,3.0171]
[1720733399512,1.1118781,3114.9,3114.8,3.0171]
[1720733400030,0.0008254,3115.0,3114.8,3.0171]
[1720733400232,0.0008254,3115.0,3114.9,0.42359531]
[1720733400399,1.11271014,3115.0,3114.9,0.42359531]
[1720733401027,0.0008254,3115.0,3114.9,0.42359531]
[1720733402013,1.11264074,3115.0,3114.9,0.42359531]
[1720733403704,1.11264074,3115.0,3114.8,3.0171]
[1720733404012,1.11181534,3114.9,3114.8,3.0171]
[1720733404207,1.1118717,3114.9,3114.8,3.0171]
[1720733404640,1.11187161,3114.9,3114.8,3.0171]
[1720733407951,0.0008254,3115.0,3114.8,3.0171]
[1720733408133,1.11187035,3114.9,3114.8,3.0171]
[1720733411536,1.11186853,3114.9,3114.8,3.0171]
[1720733411867,1.1118685,3114.9,3114.8,3.0171]
[1720733414553,1.11187245,3114.9,3114.8,3.0171]
[1720733414718,0.0008254,3115.0,3114.8,3.0171]
[1720733414924,1.11186588,3114.9,3114.8,3.0171]
[1720733416835,1.11186588,3114.9,3114.8,0.55]
[1720733418174,0.0008254,3115.0,3114.8,0.55]
[1720733418340,1.11187425,3114.9,3114.8,0.55]
[1720733418547,1.11187418,3114.9,3114.8,1.503]
[1720733421160,3.21077,3114.6,3114.1,0.953]
[1720733421381,3.21089,3114.4,3114.1,0.953]
[1720733421785,1.11218072,3114.3,3114.1,0.953]
[1720733422134,1.11219622,3114.2,3114.1,0.953]
[1720733423461,1.11219622,3114.2,3114.1,1.503]
[1720733423680,1.11219622,3114.2,3114.1,0.55]
[1720733423884,1.11219622,3114.2,3114.1,0.953]
[1720733424053,1.11219622,3114.2,3114.1,1.503]
[1720733424709,1.11221041,3114.2,3114.1,1.503]
[1720733424907,3.21099,3114.3,3114.1,1.503]
[1720733425074,1.11221368,3114.2,3114.1,1.503]
[1720733428525,4.32332794,3114.2,3113.9,0.953]
[1720733428813,1.11223794,3114.1,3113.9,0.953]
[1720733428978,1.11223794,3114.1,3114.0,0.55]
[1720733432112,1.11223343,3114.1,3114.0,0.55]
[1720733432281,1.1122328,3114.1,3114.0,0.55]
[1720733434814,1.11223546,3114.1,3114.0,0.55]
[1720733435121,3.21109,3114.2,3114.0,0.55]
[1720733435622,1.11223521,3114.1,3114.0,0.55]
[1720733436035,3.2113,3114.0,3113.8,0.953]
[1720733436198,3.21151,3113.8,3113.6,8.1935047]
[1720733436400,4.32384521,3113.7,3113.6,0.953]
[1720733436717,3.21172,3113.6,3113.1,7.2405047]
[1720733436926,1.11223521,3113.5,3113.4,0.953]
[1720733437493,4.32404521,3113.5,3113.4,0.953]
[1720733437715,4.32404521,3113.5,3113.0,2.428]
[1720733437716,4.32404521,3113.5,3113.2,0.953]
[1720733437918,4.32437364,3113.4,3113.2,0.953]
[1720733438121,3.21202,3113.3,3113.2,0.953]
[1720733438928,4.32455395,3113.3,3113.2,0.953]
[1720733439107,3.21219,3113.2,3113.0,0.953]
[1720733439317,1.11253395,3113.1,3113.0,0.953]
[1720733439512,6.42439,3113.2,3113.0,0.953]
[1720733439743,1.11260139,3113.1,3113.0,0.953]
[1720733440234,1.11260139,3113.1,3112.6,7.2405047]
[1720733440434,6.42475,3113.0,3112.7,0.953]
[1720733440637,6.42475,3113.0,3112.6,7.2405047]
[1720733440838,6.42475,3113.0,3112.7,0.953]
[1720733441344,3.21245,3112.9,3112.7,0.953]
[1720733441512,3.21245,3112.9,3112.5,0.953]
[1720733442047,3.21245,3112.9,3112.6,0.55]
[1720733442545,3.21245,3112.9,3112.5,0.953]
[1720733442704,3.21234,3113.0,3112.5,0.953]
[1720733442705,3.21255,3112.8,3112.5,0.953]
[1720733454588,6.42475,3113.0,3112.5,0.953]
[1720733454800,4.32516548,3112.9,3112.5,0.953]
[1720733455122,3.21245,3112.9,3112.5,0.953]
[1720733456560,1.1127534,3112.8,3112.2,7.2405047]
[1720733456732,3.21287,3112.5,3112.2,7.2405047]
[1720733456900,3.21287,3112.5,3112.2,8.1935047]
[1720733457353,3.21305,3112.3,3111.9,2.342]
[1720733457501,3.21305,3112.3,3111.9,3.295]
[1720733458429,6.4262,3112.3,3111.9,0.953]
[1720733458633,3.21305,3112.3,3111.9,0.953]
[1720733460142,3.21305,3112.3,3111.7,0.953]
[1720733460462,1.11294786,3112.2,3111.8,0.55]
[1720733460756,3.21305,3112.3,3111.8,0.55]
[1720733461041,1.11294756,3112.2,3111.8,0.55]
[1720733461244,3.21316,3112.2,3111.8,0.55]
[1720733461552,3.21305,3112.3,3111.7,2.32988647]
[1720733461553,3.21327,3112.1,3111.7,0.953]
[1720733462263,3.21348,3111.9,3111.2,9.5115047]
[1720733462468,2.2998,3112.4,3111.7,0.953]
[1720733462771,1.1129632,3112.3,3112.0,0.953]
[1720733462940,3.21285,3112.5,3112.0,0.953]
[1720733463247,1.11289433,3112.4,3112.0,0.953]
[1720733463450,1.11289433,3112.3,3112.0,0.953]
[1720733463606,3.21285,3112.5,3112.0,0.953]
[1720733463806,1.11288556,3112.4,3112.0,0.953]
[1720733464048,1.11288556,3112.3,3112.0,0.953]
[1720733464337,3.21285,3112.5,3112.0,0.953]
[1720733464548,1.11287796,3112.4,3112.0,0.953]
[1720733464910,3.21285,3112.5,3112.0,0.953]
[1720733465245,1.11289744,3112.4,3112.0,0.953]
[1720733465466,1.11289744,3112.3,3112.0,0.953]
[1720733465666,1.11289744,3112.4,3112.0,0.953]
[1720733465868,1.11289744,3112.3,3112.0,0.953]
[1720733466055,1.11289744,3112.2,3112.0,0.953]
[1720733466252,1.11287922,3112.1,3112.0,0.953]
[1720733468369,3.21285,3112.5,3112.0,0.953]
[1720733468571,1.11289557,3112.4,3112.0,0.953]
[1720733468959,1.11289557,3112.3,3112.0,0.953]
[1720733469132,3.21285,3112.5,3112.0,0.953]
[1720733469133,1.11289557,3112.2,3112.0,0.953]
[1720733469462,1.11289557,3112.1,3112.0,0.953]
[1720733471967,3.21285,3112.5,3112.0,0.953]
[1720733472174,1.11288541,3112.4,3112.0,0.953]
[1720733472370,1.1128979,3112.3,3111.8,0.953]
[1720733472667,1.1128979,3112.2,3111.9,0.55]
[1720733472874,1.1128979,3112.1,3111.9,0.55]
[1720733473076,1.1128979,3112.4,3111.9,0.55]
[1720733473284,1.1128979,3112.3,3111.9,0.55]
[1720733473471,1.1128979,3112.2,3111.9,0.55]
[1720733473656,1.1128979,3112.1,3111.9,0.55]
[1720733473858,1.1128979,3112.0,3111.9,0.55]
[1720733474870,1.11289563,3112.0,3111.9,0.55]
[1720733475179,1.11289563,3112.0,3111.8,0.953]
[1720733475389,1.11291094,3111.9,3111.8,1.2754]
[1720733475579,1.11291094,3111.9,3111.8,1.8254]
[1720733477688,1.11291094,3111.9,3111.8,2.8254]
[1720733478663,1.11291141,3111.9,3111.8,2.8254]
[1720733482107,1.11291197,3112.3,3111.8,2.8254]
[1720733482262,1.11291197,3112.2,3111.8,2.503]
[1720733482459,8.75616,3112.4,3111.8,2.503]
[1720733482460,1.11290432,3112.1,3111.8,2.503]
[1720733482677,1.11290432,3112.0,3111.8,2.503]
[1720733482890,5.54315,3112.4,3111.8,2.503]
[1720733482891,1.11290432,3112.3,3111.8,2.503]
[1720733483681,4.32597432,3112.3,3111.8,2.503]
[1720733483882,1.11290432,3112.2,3111.8,2.503]
[1720733484803,3.21308,3112.3,3111.8,2.503]
[1720733485001,1.11294353,3112.2,3111.8,2.503]
[1720733485194,1.11294353,3112.1,3111.8,2.503]
[1720733485394,1.11292906,3112.0,3111.8,2.503]
[1720733485590,1.11292906,3111.9,3111.8,2.503]
[1720733485793,3.21308,3112.3,3111.8,2.503]
[1720733485794,1.11292906,3112.2,3111.8,2.503]
[1720733486115,1.11292906,3112.1,3111.8,2.503]
[1720733486427,1.11292906,3112.2,3111.8,2.503]
[1720733486595,1.11292906,3112.1,3111.8,2.503]
[1720733486788,1.11292906,3112.2,3111.8,2.503]
[1720733488902,1.11292551,3112.1,3111.8,2.503]
[1720733489097,1.11292551,3112.0,3111.8,2.503]
[1720733489297,1.11292551,3112.2,3111.8,1.55]
[1720733492340,1.11297937,3112.1,3111.8,1.55]
[1720733492544,3.21308,3112.3,3111.8,1.55]
[1720733492697,1.11298255,3112.2,3111.8,1.55]
[1720733492897,1.11298255,3112.1,3111.8,1.55]
[1720733493097,1.11298255,3112.0,3111.8,1.55]
[1720733493435,1.11298255,3111.9,3111.8,1.55]
[1720733493906,1.11298255,3111.9,3111.8,5.1836]
[1720733495095,1.11298255,3111.9,3111.8,4.9333]
[1720733495522,3.21285,3112.5,3111.8,4.9333]
[1720733495735,3.21285,3112.5,3111.9,0.55]
[1720733495941,3.21297,3112.4,3111.9,0.55]
[1720733496139,6.42602,3112.4,3111.9,0.55]
[1720733496445,3.855672,3112.3,3111.9,0.55]
[1720733497836,3.21318,3112.2,3111.8,1.0]
[1720733507586,6.42641,3112.2,3111.8,1.0]
[1720733507747,3.21318,3112.2,3111.8,1.0]
[1720733508590,6.42641,3112.2,3111.8,1.0]
[1720733509094,3.21318,3112.2,3111.8,1.0]
[1720733509602,6.42641,3112.2,3111.8,1.0]
[1720733510582,3.21318,3112.2,3111.8,1.0]
[1720733510961,6.42641,3112.2,3111.8,1.0]
[1720733512090,6.1744812,3112.2,3111.8,1.0]
[1720733512555,9.3877212,3112.2,3111.8,1.0]
[1720733513547,3.21327,3112.1,3111.8,1.0]
[1720733518376,1.11304504,3112.0,3111.8,1.0]
[1720733518576,1.11304504,3111.9,3111.8,1.0]
[1720733518972,1.11304504,3112.0,3111.8,1.0]
[1720733520398,4.32643504,3112.0,3111.8,1.0]
[1720733520601,1.11304504,3111.9,3111.8,1.0]
[1720733520968,3.21339,3112.0,3111.8,1.0]
[1720733521172,1.11304836,3111.9,3111.8,1.0]
[1720733521411,3.21339,3112.0,3111.8,1.0]
[1720733521709,1.11304844,3111.9,3111.8,1.0]
[1720733523494,4.32651844,3111.9,3111.8,1.0]
[1720733523700,4.32654183,3111.9,3111.8,1.0]
[1720733524584,12.84750318,3111.9,3111.8,1.0]
[1720733524915,19.42007853,3111.9,3111.8,1.0]
[1720733525122,19.42007853,3111.9,3111.2,7.2405047]
[1720733525123,6.42818,3111.3,3111.2,7.2405047]
[1720733525299,3.21455,3110.9,3110.7,7.2405047]
[1720733525484,4.32769853,3110.8,3110.7,7.2405047]
[1720733526386,3.21491,3110.5,3110.4,0.275]
[1720733526585,8.49591853,3110.5,3110.4,0.275]
[1720733527223,14.71082853,3110.5,3110.4,0.275]
[1720733528129,14.71150076,3110.5,3110.4,0.275]
[1720733531604,17.03070076,3110.5,3110.4,0.275]
[1720733531826,18.73386144,3110.5,3110.4,0.275]
[1720733532023,18.73386144,3110.5,3110.0,0.00082181]
[1720733532024,9.64599,3110.1,3110.0,0.00082181]
[1720733532196,14.09938844,3110.1,3110.0,0.00082181]
[1720733532613,17.09938844,3110.1,3110.0,0.00082181]
[1720733535210,17.0994326,3110.1,3110.0,0.00082181]
[1720733535739,18.80937586,3110.1,3110.0,0.00082181]
[1720733537224,17.69543326,3110.1,3110.0,0.00082181]
[1720733537429,18.80936473,3110.1,3110.0,0.00082181]
[1720733538427,17.69543326,3110.1,3110.0,0.00082181]
[1720733543130,17.85639962,3110.1,3110.0,0.00082181]
[1720733543335,18.80939962,3110.1,3110.0,0.00082181]
[1720733544845,18.80939586,3110.1,3110.0,0.00082181]
[1720733545337,18.80939592,3110.1,3110.0,0.00082181]
[1720733548628,18.80939629,3110.1,3110.0,0.00082181]
[1720733552062,17.69543326,3110.1,3110.0,0.00082181]
[1720733552252,18.80936231,3110.1,3110.0,0.00082181]
[1720733552451,17.69543326,3110.1,3110.0,0.00082181]
[1720733552645,18.80939548,3110.1,3110.0,0.00082181]
[1720733554826,18.80939262,3110.1,3110.0,0.00082181]
[1720733555490,17.69543326,3110.1,3110.0,0.00082181]
[1720733555761,18.80939266,3110.1,3110.0,0.00082181]
[1720733558982,17.69543326,3110.1,3110.0,0.00082181]
[1720733559184,18.80938811,3110.1,3110.0,0.00082181]
[1720733559960,17.69543326,3110.1,3110.0,0.00082181]
[1720733560162,18.80938722,3110.1,3110.0,0.00082181]
[1720733562477,17.69543326,3110.1,3110.0,0.00082181]
[1720733562655,18.80938291,3110.1,3110.0,0.00082181]
[1720733562851,17.69543326,3110.1,3110.0,0.00082181]
[1720733563056,18.80938161,3110.1,3110.0,0.00082181]
[1720733563672,13.20755161,3110.1,3110.0,0.00082181]
[1720733565294,13.20748259,3110.1,3110.0,0.00082181]
[1720733565926,13.20749554,3110.1,3110.0,0.00082181]
[1720733566398,16.42282554,3110.1,3110.0,0.00082181]
[1720733566598,13.20749554,3110.1,3110.0,0.00082181]
[1720733567019,11.49755228,3110.1,3110.0,0.00082181]
[1720733567484,10.54455228,3110.1,3110.0,0.00082181]
[1720733567888,11.49755228,3110.1,3110.0,0.00082181]
[1720733568081,11.49755228,3110.1,3110.0,2.39152181]
[1720733568082,1.11389228,3110.1,3110.0,2.39152181]
[1720733568326,1.11389228,3110.1,3110.0,2.72597399]
[1720733568524,3.21448,3111.0,3110.0,2.72597399]
[1720733568727,1.11345981,3110.9,3110.3,2.3907]
[1720733568885,1.11345981,3110.8,3110.3,2.3907]
[1720733569085,1.11337295,3110.7,3110.3,2.3907]
[1720733569287,3.21366,3111.8,3110.0,3.55062399]
[1720733569288,1.11337295,3110.6,3110.5,3.21491]
[1720733569527,3.21432,3111.1,3110.5,2.3907]
[1720733569721,1.11339772,3110.6,3110.5,5.60561]
[1720733570023,3.21388,3111.5,3110.6,0.953]
[1720733570183,1.11323774,3111.4,3110.6,4.16779]
[1720733570385,1.11323774,3111.3,3110.8,0.953]
[1720733570624,3.21375,3111.7,3110.8,1.01728573]
[1720733570916,3.214,3111.4,3110.7,0.97734]
[1720733571094,1.11320036,3111.3,3110.5,2.3907]
[1720733572314,4.167,3111.4,3110.5,2.3907]
[1720733572515,1.11334976,3111.3,3110.5,5.60561]
[1720733572835,1.11334052,3111.2,3110.5,5.60561]
[1720733572998,4.167,3111.4,3110.5,5.60561]
[1720733573203,1.11333995,3111.3,3110.6,1.642941]
[1720733573409,1.11333995,3111.2,3110.6,1.642941]
[1720733573613,3.214,3111.4,3110.6,1.642941]
[1720733573937,1.11338545,3111.3,3110.6,1.642941]
[1720733575129,1.11336206,3111.2,3110.6,1.642941]
[1720733575295,3.214,3111.4,3110.6,1.642941]
[1720733575499,1.11336225,3111.3,3110.6,1.642941]
[1720733575742,1.11334929,3111.2,3110.6,1.642941]
[1720733575904,6.42808,3111.4,3110.6,1.642941]
[1720733576101,1.11335296,3111.3,3110.6,1.642941]
[1720733576325,3.21409,3111.3,3110.6,1.642941]
[1720733577341,3.21409,3111.3,3110.7,0.7248541]
[1720733579225,3.21392,3111.5,3110.7,0.7248541]
[1720733579659,4.32727443,3111.4,3110.7,0.7248541]
[1720733579854,3.21398,3111.4,3110.7,0.7248541]
[1720733581139,3.21392,3111.5,3110.7,0.7248541]
[1720733581341,3.21392,3111.5,3110.8,2.2565]
[1720733582365,1.11215754,3111.6,3110.8,3.92441441]
[1720733582366,3.21378,3111.6,3110.8,3.92441441]
[1720733582564,3.0,3111.5,3110.8,3.92441441]
[1720733583927,3.0,3111.5,3110.8,7.13901441]
[1720733584163,3.0,3111.6,3110.8,7.13901441]
[1720733585494,6.21379,3111.6,3110.8,7.13901441]
[1720733590202,3.21368,3111.7,3110.9,2.86839886]
[1720733590350,1.11319795,3111.6,3110.9,2.86839886]
[1720733590676,3.21368,3111.7,3110.9,2.86839886]
[1720733590863,1.11320565,3111.6,3110.9,2.86839886]
[1720733591068,3.21368,3111.7,3110.9,2.86839886]
[1720733591268,1.11320567,3111.6,3110.9,2.86839886]
[1720733591655,1.11321649,3111.5,3110.9,2.86839886]
[1720733591869,2.4733,3111.6,3110.9,3.60067886]
[1720733592084,1.11321788,3111.5,3111.0,2.4822]
[1720733592266,1.11321788,3111.4,3111.0,2.4822]
[1720733592601,3.21368,3111.7,3111.0,2.4822]
[1720733592908,1.11326411,3111.6,3111.0,2.4822]
[1720733593108,1.11326411,3111.5,3111.0,2.4822]
[1720733593283,1.11326411,3111.4,3111.0,2.4822]
[1720733593603,3.21368,3111.7,3111.0,2.4822]
[1720733593810,1.1132076,3111.6,3111.0,2.4822]
[1720733593980,3.21368,3111.7,3111.0,2.4822]
[1720733593981,1.1132076,3111.5,3111.0,2.4822]
[1720733594174,1.1132076,3111.4,3111.0,2.4822]
[1720733594378,3.21368,3111.7,3111.0,2.4822]
[1720733594592,1.11320386,3111.6,3111.0,2.4822]
[1720733594806,3.96778078,3111.7,3111.0,2.4822]
[1720733594807,1.11320386,3111.5,3111.0,2.4822]
[1720733595114,1.11320129,3111.4,3111.0,2.4822]
[1720733595412,1.11320129,3111.3,3111.0,2.4822]
[1720733595739,3.96778078,3111.7,3111.0,2.4822]
[1720733596019,1.92664185,3111.6,3111.0,2.4822]
[1720733596169,1.11320677,3111.5,3111.0,2.4822]
[1720733598503,1.11322682,3111.4,3111.0,2.4822]
[1720733598716,1.11322682,3111.3,3111.0,2.4822]
[1720733598871,4.02723508,3111.6,3111.0,2.4822]
[1720733598872,1.11322682,3111.5,3111.0,2.4822]
[1720733599070,1.51595033,3111.5,3111.0,2.4822]
[1720733599270,1.11322682,3111.4,3111.0,2.4822]
[1720733599582,0.40272351,3111.5,3111.0,2.4822]
[1720733599583,1.11322682,3111.3,3111.0,2.4822]
[1720733599795,1.11322682,3111.2,3111.0,2.4822]
[1720733599970,1.11322682,3111.1,3111.0,2.4822]
[1720733601873,1.11326191,3111.1,3111.0,2.4822]
[1720733602307,1.11322683,3111.1,3111.0,2.4822]
[1720733605170,1.11322464,3111.1,3111.0,2.4822]
[1720733608516,3.2138,3111.6,3111.0,2.4822]
[1720733608675,1.11319625,3111.1,3111.0,2.4822]
[1720733608877,1.11319625,3111.5,3111.0,2.4822]
[1720733609212,1.11319625,3111.4,3111.0,2.4822]
[1720733609371,1.11319625,3111.5,3111.0,2.4822]
[1720733612076,3.2138,3111.6,3111.0,2.4822]
[1720733612280,1.11319663,3111.5,3111.0,2.4822]
[1720733615213,1.11319899,3111.4,3111.0,2.4822]
[1720733615417,0.642742,3111.6,3111.0,2.4822]
[1720733615718,1.1132026,3111.5,3111.0,2.4822]
[1720733615877,1.1132026,3111.4,3111.0,2.4822]
[1720733616078,1.1132026,3111.3,3111.0,2.4822]
[1720733616279,1.1132026,3111.5,3111.0,2.4822]
[1720733618779,1.1132026,3111.5,3111.1,3.21429]
[1720733618986,1.11320021,3111.4,3111.1,3.21429]
[1720733619221,1.11320021,3111.3,3111.1,3.21429]
[1720733619398,1.11320021,3111.2,3111.0,5.69653]
[1720733619597,1.11320021,3111.7,3111.0,5.69653]
[1720733619809,1.59039861,3111.6,3111.0,8.91087]
[1720733619985,1.11320021,3111.5,3111.0,8.91087]
[1720733620195,1.11316516,3111.4,3111.0,5.69653]
[1720733620401,1.11316516,3111.3,3111.0,5.69653]
[1720733620709,1.11316516,3111.2,3111.0,5.69653]
[1720733620896,1.11316516,3111.7,3111.0,5.69653]
[1720733621097,1.11316516,3111.6,3111.0,5.69653]
[1720733622432,1.11317023,3111.5,3111.0,5.69653]
[1720733622649,1.11317023,3111.4,3111.0,5.69653]
[1720733622964,1.11317125,3111.3,3111.0,5.69653]
[1720733623132,1.11317125,3111.2,3111.0,5.69653]
[1720733623356,1.11317125,3111.1,3111.0,5.69653]
[1720733625576,4.34966667,3111.7,3111.0,5.69653]
[1720733625716,1.11317752,3111.1,3111.0,5.69653]
[1720733629143,1.11316679,3111.1,3111.0,5.69653]
[1720733630060,1.11316679,3111.1,3110.6,6.33130135]
[1720733630267,1.11316679,3111.0,3110.7,4.16765]
[1720733630442,1.11316679,3111.3,3110.7,4.16765]
[1720733632570,1.11323839,3111.2,3110.7,4.16765]
[1720733632746,1.11323839,3111.1,3110.7,4.16765]
[1720733632958,0.642791,3111.4,3110.7,4.16765]
[1720733633163,1.11323854,3111.3,3110.7,4.16765]
[1720733633487,1.11323854,3111.2,3110.7,4.16765]
[1720733633780,1.11323854,3111.1,3110.7,4.16765]
[1720733634084,1.11323854,3111.0,3110.7,4.16765]
[1720733634287,1.11323854,3111.4,3110.7,4.16765]
[1720733634439,1.11323854,3111.3,3110.7,4.16765]
[1720733634638,0.88753,3111.4,3110.7,4.16765]
[1720733634639,1.11323854,3111.2,3110.7,4.16765]
[1720733634875,1.11323854,3111.1,3110.7,4.16765]
[1720733635045,1.11323854,3111.3,3110.7,4.16765]
[1720733635669,1.11329287,3111.2,3110.7,4.16765]
[1720733636177,1.11329293,3111.1,3110.7,4.16765]
[1720733636379,1.11329293,3111.0,3110.7,4.16765]
[1720733636589,1.11329293,3110.9,3110.7,4.16765]
[1720733636748,1.11329293,3110.8,3110.7,4.16765]
[1720733637998,1.11329293,3110.8,3110.3,2.4417]
[1720733638139,1.11329293,3110.7,3110.3,2.4417]
[1720733638347,3.21482,3110.6,3110.2,7.2405047]
[1720733638538,1.67452493,3110.5,3110.2,7.2405047]
[1720733638778,1.11329293,3110.4,3110.0,0.00082181]
[1720733639499,4.32886122,3110.3,3110.0,0.00082181]
[1720733639656,4.32896122,3110.2,3110.0,0.00082181]
[1720733640064,1.11372122,3110.1,3110.0,0.00082181]
[1720733640944,7.48096134,3110.1,3110.0,0.00082181]
[1720733641186,10.69629134,3110.1,3110.0,0.00082181]
[1720733641394,14.64929134,3110.1,3110.0,0.00082181]
[1720733641873,13.53557012,3110.1,3110.0,0.00082181]
[1720733642359,14.64947042,3110.1,3110.0,0.00082181]
[1720733644987,13.53557012,3110.1,3110.0,0.00082181]
[1720733645179,14.64948074,3110.1,3110.0,0.00082181]
[1720733646404,14.64948074,3110.1,3108.9,7.2405047]
[1720733646405,3.2161,3109.4,3108.9,7.2405047]
[1720733646606,3.2161,3109.4,3108.4,3.21701]
[1720733646607,6.43224,3109.4,3108.6,0.953]
[1720733646757,3.2161,3109.4,3108.6,0.953]
[1720733647094,3.2161,3109.4,3108.8,0.953]
[1720733647283,3.21622,3109.3,3108.5,3.21689]
[1720733647488,3.21622,3109.3,3108.6,0.953]
[1720733654094,3.21626,3109.2,3108.6,0.953]
[1720733654297,3.21626,3109.2,3108.5,4.16989]
[1720733655516,3.21626,3109.2,3108.7,0.953]
[1720733661296,3.21626,3109.2,3108.5,4.16989]
[1720733661513,3.21626,3109.2,3108.5,5.63264347]
[1720733662294,0.0008167,3109.0,3108.5,5.63264347]
[1720733667231,1.11406015,3108.9,3108.5,5.63264347]
[1720733667437,0.0008167,3109.0,3108.5,5.63264347]
[1720733667634,1.11406015,3108.9,3108.5,5.63264347]
[1720733667831,0.0008167,3109.0,3108.5,5.63264347]
[1720733668040,1.11405736,3108.9,3108.5,5.63264347]
[1720733668215,1.11405591,3108.8,3108.5,5.63264347]
[1720733668414,1.11405591,3108.7,3108.5,5.63264347]
[1720733668733,0.0008167,3109.0,3108.5,5.63264347]